[Event "37th Zalakaros Festival 2018"]
[Site "Zalakaros"]
[Date "2018.06.02"]
[Round "9"]
[White "Kareva, Natalia"]
[Black "Borsos, Bogdan"]
[Result "1-0"]
[ECO "D01"]
[WhiteElo "2206"]
[BlackElo "2277"]
[Annotator "NA"]
[PlyCount "89"]
[EventDate "2018.??.??"]
[EventType "swiss"]
[EventCountry "HUN"]
[SourceTitle "playchess.com"]
[Source "ChessBase"]
[SourceQuality "1"]
[TimeControl "40/5400+30:1800+30"]

1. d4 {[%emt 0:00:13]} d5 {[%emt 0:01:03]} 2. Nc3 {[%emt 0:00:37]} Nf6 {[%emt 0:02:22]} 3. Bg5 {[%emt 0:00:15]} Nbd7 {[%emt 0:00:12]} 4. Qd2 {[%emt 0:01:43]} c6 {[%emt 0:00:44] D01: Veresov Opening} 5. Nf3 {[%emt 0:00:55]} (5. f3 h6 6. Bh4 e5 7. dxe5 Nxe5 8. e4 Nxe4 9. fxe4 Qxh4+ 10. g3 Qe7 11. O-O-O Bg4 12. Re1 d4 13. Qxd4 Qc5 14. Qxc5 Bxc5 {0-1 (53) Pogromsky,M (2416)-Triapishko,O (2508) Sochi 2017}) 5... b5 {[%emt 0:00:19]} 6. a3 {[%emt 0:03:30]} a5 $146 {[%emt 0:01:14]} ({Predecessor:} 6... Nb6 7. b3 Ne4 8. Qd3 Nxg5 9. Nxg5 e5 10. h4 h6 11. Nf3 e4 {0-1 (36) Batricevic,J (2163)-Nikac,P (2342) Cetinje 2010}) 7. e3 {[%emt 0:03:20]} Bb7 8. Bd3 {[%emt 0:09:46]} b4 {[%emt 0:03:35]} 9. Na4 {[%emt 0:00:37]} e6 {[%emt 0:05:18]} 10. c4 {[%emt 0:04:57]} Be7 {[%emt 0:01:56]} 11. Bxf6 {[%emt 0:07:37]} gxf6 {[%emt 0:05:12]} 12. c5 {[%emt 0:01:41]} bxa3 {[%emt 0:00:41]} 13. bxa3 {[%emt 0:00:23]} Ba6 {[%emt 0:03:39]} 14. Bxa6 {[%emt 0:01:37]} Rxa6 {[%emt 0:00:07]} 15. O-O {[%emt 0:00:40]} f5 {[%emt 0:03:37]} 16. Rfb1 {[%emt 0:01:45]} Qc7 {[%emt 0:01:12]} 17. Rb3 {[%emt 0:02:33]} O-O {[%emt 0:02:47]} 18. Rab1 {[%emt 0:04:07]} Rb8 {[%emt 0:00:13]} 19. Rxb8+ {[%emt 0:07:45]} Nxb8 {[%emt 0:00:07]} 20. Ne5 {[%emt 0:03:18]} f6 {[%emt 0:02:54]} 21. Qb2 {[%emt 0:02:00]} fxe5 {[%emt 0:14:24]} 22. Qxb8+ {[%emt 0:01:06]} Qxb8 {[%emt 0:00:06]} 23. Rxb8+ {[%emt 0:00:04]} Kf7 {[%emt 0:00:03]} 24. dxe5 {[%emt 0:02:17]} Ra7 {[%emt 0:01:56]} 25. Rb3 {[%emt 0:06:36]} Rd7 {[%emt 0:01:34]} 26. Kf1 {[%emt 0:00:15]} f4 {[%emt 0:03:16]} 27. exf4 {[%emt 0:03:16]} d4 {[%emt 0:00:34]} 28. Ke2 {[%emt 0:01:26]} Rd5 {[%emt 0:00:05]} 29. Kd3 {[%emt 0:02:07]} Bxc5 {[%emt 0:00:09]} 30. Nxc5 {[%emt 0:00:55]} Rxc5 {[%emt 0:00:02]} 31. Kxd4 {[%emt 0:00:44]} Rc2 {[%emt 0:00:06]} 32. Ke3 {[%emt 0:00:32]} a4 {[%emt 0:00:37]} 33. Rb7+ {[%emt 0:05:56]} Ke8 {[%emt 0:01:08]} 34. Rxh7 {[%emt 0:05:24]} c5 {[%emt 0:00:05]} 35. Ra7 {[%emt 0:01:51]} Rc3+ {[%emt 0:00:09]} 36. Ke4 {[%emt 0:01:16]} Rxa3 {[%emt 0:00:18]} 37. h4 {[%emt 0:00:44]} Ra1 {[%emt 0:01:35]} 38. h5 {[%emt 0:00:16]} Kf8 {[%emt 0:00:37]} 39. h6 {[%emt 0:00:48]} Kg8 {[%emt 0:00:09]} 40. f5 {[%emt 0:00:00]} a3 {[%emt 0:02:06]} 41. fxe6 {[%emt 0:00:31]} a2 {[%emt 0:00:12]} 42. Kf5 {[%emt 0:00:11]} Rh1 {[%emt 0:01:25]} 43. Rxa2 {[%emt 0:00:26]} Rxh6 {[%emt 0:00:08]} 44. Ra8+ {[%emt 0:00:04]} Kg7 {[%emt 0:00:09]} 45. e7 {[%emt 0:00:07]} 1-0

[Event "37th Zalakaros Festival 2018"]
[Site "Zalakaros"]
[Date "2018.06.02"]
[Round "9"]
[White "Ugroczky, Peter"]
[Black "Krykun, Yuriy"]
[Result "0-1"]
[ECO "C54"]
[WhiteElo "2197"]
[BlackElo "2338"]
[Annotator "NA RC"]
[PlyCount "131"]
[EventDate "2018.??.??"]
[EventType "swiss"]
[EventCountry "HUN"]
[SourceTitle "playchess.com"]
[Source "ChessBase"]
[SourceQuality "1"]
[TimeControl "40/5400+30:1800+30"]

1. e4 {[%emt 0:00:06]} e5 {[%emt 0:00:42]} 2. Nf3 {[%emt 0:00:06]} Nc6 {[%emt 0:00:03]} 3. Bc4 {[%emt 0:00:26]} Bc5 {[%emt 0:00:42]} 4. c3 {[%emt 0:00:13]} Nf6 {[%emt 0:00:04]} 5. d4 {[%emt 0:00:40]} exd4 {[%emt 0:00:09]} 6. O-O {[%emt 0:01:07]} Nxe4 {[%emt 0:11:56]} 7. cxd4 {[%emt 0:01:32]} d5 {[%emt 0:00:46]} 8. dxc5 {[%emt 0:00:26]} dxc4 {[%emt 0:00:17]} 9. Qe2 {[%emt 0:00:26]} Qd3 {[%emt 0:01:20]} 10. Re1 {[%emt 0:00:11]} f5 {[%emt 0:03:58]} 11. Nbd2 O-O {[%emt 0:03:35]} 12. Nxe4 {[%emt 0:01:22] C56: Two Knights: 4 d4 exd4 5 0-0 Nxe4} fxe4 {[%emt 0:01:22]} 13. Qxe4 {[%emt 0:00:06]} Bf5 {[%emt 0:00:55]} 14. Qh4 {[%emt 0:00:07]} (14. Qxd3 cxd3 15. Bd2 Rae8 16. Bc3 Bg4 17. Nd2 Be2 18. f3 Ne7 19. Ne4 Nf5 {0-1 (65) Ozgibcev,A (2376)-Shirov,A (2630) Sochi 2017}) 14... Rae8 {[%emt 0:15:03]} 15. Bf4 {[%emt 0:00:21]} c3 {[%emt 0:06:30]} 16. bxc3 {[%emt 0:04:44]} Rxe1+ {[%emt 0:02:53]} 17. Rxe1 {[%emt 0:01:15]} Qxc3 {[%emt 0:00:10]} 18. Bxc7 {[%emt 0:07:48]} Qxc5 {[%emt 0:01:05]} 19. Qg3 {[%emt 0:06:00]} Qd5 {[%emt 0:09:38]} 20. Bd6 $146 {[%emt 0:06:34]} ({Predecessor:} 20. a3 Qd3 21. h4 {½-½ (21) Tomczak,J (2449)-Prohaszka,P (2506) Szeged 2008}) 20... Rd8 {[%emt 0:09:42]} 21. Bc7 {[%emt 0:03:16]} Rc8 {[%emt 0:01:17]} 22. a3 {[%emt 0:03:36]} Be4 {[%emt 0:05:40]} 23. Qg4 {[%emt 0:05:34]} Rxc7 {[%emt 0:03:49]} 24. Qxe4 {[%emt 0:01:40]} Qxe4 {[%emt 0:00:19]} 25. Rxe4 {[%emt 0:00:05]} Rd7 {[%emt 0:00:07]} 26. g3 {[%emt 0:01:20]} h6 {[%emt 0:03:08]} 27. Kg2 {[%emt 0:01:02]} Rd5 {[%emt 0:01:17]} 28. Ne1 {[%emt 0:02:43]} Rc5 {[%emt 0:04:51]} 29. Re3 {[%emt 0:02:19]} b5 {[%emt 0:00:59]} 30. Kf3 {[%emt 0:01:27]} a5 {[%emt 0:01:06]} 31. Ke2 {[%emt 0:01:37]} b4 {[%emt 0:05:04]} 32. axb4 {[%emt 0:00:39]} Nxb4 {[%emt 0:00:19]} 33. Re7 {[%emt 0:01:43]} Rc3 {[%emt 0:01:07]} 34. Ra7 {[%emt 0:01:58]} Ra3 {[%emt 0:00:21]} 35. Nf3 {[%emt 0:02:54]} a4 {[%emt 0:05:27]} 36. Nd4 {[%emt 0:02:59]} Ra1 {[%emt 0:00:21]} 37. Nb5 {[%emt 0:01:32]} Nd5 {[%emt 0:01:12]} 38. Kd3 {[%emt 0:03:15]} Nf6 {[%emt 0:00:43]} 39. Nc3 {[%emt 0:03:57]} a3 {[%emt 0:00:37]} 40. h4 {[%emt 0:00:00]} Ng4 {[%emt 0:00:46]} 41. Ke2 {[%emt 0:04:35]} Ne5 {[%emt 0:05:27]} 42. Kd2 {[%emt 0:06:01]} Nc4+ {[%emt 0:03:22]} 43. Kd3 {[%emt 0:01:07]} Nd6 {[%emt 0:02:03]} 44. Ra6 {[%emt 0:04:03]} Nf7 {[%emt 0:03:42]} 45. f4 {[%emt 0:03:13]} h5 {[%emt 0:01:56]} 46. Kc2 {[%emt 0:11:36]} Nh6 {[%emt 0:02:38]} 47. Ne4 {[%emt 0:04:14]} Nf5 {[%emt 0:00:45]} 48. Kb3 {[%emt 0:04:25]} Re1 {[%emt 0:02:11]} 49. Ng5 {[%emt 0:00:38]} Kf8 {[%emt 0:00:19]} 50. Rxa3 $19 {[%emt 0:03:27]} (50. Kc4 $11 {and White has nothing to worry.}) 50... Re3+ {[%emt 0:06:34]} 51. Kb4 {[%emt 0:00:06]} Rxa3 {[%emt 0:00:09]} 52. Kxa3 {[%emt 0:00:06]} Nxg3 {[%emt 0:00:01]} 53. Kb4 {[%emt 0:01:00]} Ke7 {[%emt 0:00:43]} 54. Kc5 {[%emt 0:02:37]} Kf6 {[%emt 0:00:44]} 55. Kd4 {[%emt 0:05:24]} Kf5 {[%emt 0:02:21]} 56. Ke3 {[%emt 0:00:18]} Kg4 {[%emt 0:00:09]} 57. Ne6 {[%emt 0:02:44]} g6 {[%emt 0:00:31]} 58. Nf8 {[%emt 0:01:07]} Nf5+ {[%emt 0:00:12]} 59. Ke4 {[%emt 0:00:04]} Nxh4 {[%emt 0:00:11]} 60. Ke5 {[%emt 0:00:43]} Nf3+ {[%emt 0:02:36]} 61. Ke4 {[%emt 0:03:32]} h4 {[%emt 0:00:20]} 62. Ke3 {[%emt 0:03:32]} Kg3 {[%emt 0:01:01]} 63. Nxg6 {[%emt 0:01:39]} h3 {[%emt 0:00:09]} 64. f5 {[%emt 0:00:37]} h2 {[%emt 0:00:10]} 65. f6 {[%emt 0:00:03]} Ng5 {[%emt 0:00:30]} 66. Kd4 0-1

[Event "37th Zalakaros Festival 2018"]
[Site "Zalakaros"]
[Date "2018.06.02"]
[Round "9"]
[White "Bozinovic, Bogdan"]
[Black "Polajzer, Danilo"]
[Result "1/2-1/2"]
[ECO "D16"]
[WhiteElo "2176"]
[BlackElo "2273"]
[Annotator "NA"]
[PlyCount "26"]
[EventDate "2018.??.??"]
[EventType "swiss"]
[EventCountry "HUN"]
[SourceTitle "playchess.com"]
[Source "ChessBase"]
[SourceQuality "1"]
[TimeControl "40/5400+30:1800+30"]

1. d4 {[%emt 0:00:07]} d5 {[%emt 0:06:36]} 2. c4 {[%emt 0:00:15]} c6 {[%emt 0:00:03]} 3. Nf3 {[%emt 0:00:08]} Nf6 {[%emt 0:00:06]} 4. Nc3 {[%emt 0:00:09]} dxc4 {[%emt 0:00:05]} 5. a4 {[%emt 0:00:14]} e6 {[%emt 0:00:14]} 6. e3 {[%emt 0:00:30]} c5 {[%emt 0:00:01]} 7. Bxc4 {[%emt 0:00:17]} cxd4 {[%emt 0:00:09]} 8. exd4 {[%emt 0:00:21]} Be7 {[%emt 0:00:07]} 9. O-O {[%emt 0:00:11]} O-O {[%emt 0:00:01]} 10. d5 {[%emt 0:00:26]} exd5 {[%emt 0:00:49]} 11. Nxd5 {[%emt 0:00:08]} Nxd5 {[%emt 0:00:09]} 12. Bxd5 {[%emt 0:00:11]} Nd7 {[%emt 0:00:09]} 13. Be3 {[%emt 0:00:28]} Nf6 {[%emt 0:00:06]} 1/2-1/2

[Event "37th Zalakaros Festival 2018"]
[Site "Zalakaros"]
[Date "2018.06.02"]
[Round "9"]
[White "Bereczki, Janos"]
[Black "Kernazhitsky, Leonid"]
[Result "1/2-1/2"]
[ECO "D20"]
[WhiteElo "2099"]
[BlackElo "2250"]
[Annotator "ChessBase"]
[PlyCount "77"]
[EventDate "2018.??.??"]
[EventType "swiss"]
[EventCountry "HUN"]
[SourceTitle "playchess.com"]
[Source "ChessBase"]
[SourceQuality "1"]
[TimeControl "40/5400+30:1800+30"]

1. d4 {[%emt 0:02:16]} d5 {[%emt 0:03:28]} 2. c4 {[%emt 0:05:52]} dxc4 {[%emt 0:00:10]} 3. e3 {[%emt 0:00:28]} a6 {[%emt 0:00:33]} 4. Bxc4 {[%emt 0:00:10]} Nf6 {[%emt 0:00:14]} 5. Nf3 {[%emt 0:00:54]} e6 {[%emt 0:01:18]} 6. O-O {[%emt 0:00:41]} c5 {[%emt 0:00:20]} 7. dxc5 {[%emt 0:01:00]} Bxc5 {[%emt 0:01:10]} 8. Qxd8+ {[%emt 0:01:14]} Kxd8 {[%emt 0:00:15]} 9. a3 {[%emt 0:04:37]} Nc6 {[%emt 0:01:39]} 10. b4 {[%emt 0:01:05]} Bd6 11. Bb2 {[%emt 0:01:31]} Ke7 {[%emt 0:00:43]} 12. Nbd2 {[%emt 0:01:25]} b6 {[%emt 0:05:35]} 13. Be2 {[%emt 0:05:01]} Bb7 {[%emt 0:11:52]} 14. Rac1 Rac8 {[%emt 0:01:52]} 15. Nc4 {[%emt 0:09:54]} Bc7 {[%emt 0:00:12]} 16. Nd4 {[%emt 0:05:33]} Nxd4 {[%emt 0:01:18]} 17. Bxd4 {[%emt 0:02:09]} Nd7 {[%emt 0:00:22]} 18. a4 {[%emt 0:11:13]} e5 {[%emt 0:03:41]} 19. Bb2 {[%emt 0:00:38]} f6 {[%emt 0:11:25]} 20. b5 {[%emt 0:00:18]} Nc5 {[%emt 0:02:04]} 21. Ba3 {[%emt 0:01:20]} axb5 {[%emt 0:00:41]} 22. Na5 {[%emt 0:20:17]} b4 {[%emt 0:08:37]} 23. Bxb4 {[%emt 0:01:05]} bxa5 {[%emt 0:02:54]} 24. Bxc5+ {[%emt 0:01:06]} Bd6 {[%emt 0:00:12]} 25. Bxd6+ {[%emt 0:00:37]} Kxd6 {[%emt 0:00:09]} 26. Rfd1+ {[%emt 0:02:05]} Ke7 {[%emt 0:00:17]} 27. Bg4 {[%emt 0:02:10]} Rxc1 {[%emt 0:03:40]} 28. Rxc1 {[%emt 0:00:25]} Kd6 {[%emt 0:00:49]} 29. Rd1+ {[%emt 0:02:31]} Kc5 {[%emt 0:00:37]} 30. Rc1+ {[%emt 0:00:40]} Kb6 {[%emt 0:01:04]} 31. Rb1+ {[%emt 0:00:31]} Kc7 {[%emt 0:00:52]} 32. Rc1+ {[%emt 0:01:35]} Kb8 {[%emt 0:00:23]} 33. Rc5 {[%emt 0:00:34]} Rd8 {[%emt 0:10:57]} 34. Rxa5 {[%emt 0:00:17]} Bc6 {[%emt 0:00:16]} 35. h4 {[%emt 0:02:07]} Kb7 {[%emt 0:00:25]} 36. Rc5 {[%emt 0:01:46]} Bxa4 {[%emt 0:01:43]} 37. Bf3+ {[%emt 0:02:06]} Kb6 {[%emt 0:00:20]} 38. Rc1 {[%emt 0:01:05]} Bb5 {[%emt 0:01:07]} 39. Be4 {[%emt 0:03:41]} 1/2-1/2